bitfinex/quotes_ETHUSD_20240823
["timestamp","ask_amount","ask_price","bid_price","bid_amount"]
[1724453293685,6.2913,2783.4,2782.5,6.5157]
[1724453294500,9.8841,2783.4,2782.5,26.3057]
[1724453294810,3.593,2783.2,2782.5,26.3057]
[1724453294970,3.593,2783.2,2782.6,2.90287]
[1724453295169,3.5932,2783.1,2782.5,19.79]
[1724453296078,3.593,2783.2,2782.5,19.79]
[1724453296384,7.18606,2783.2,2782.5,19.79]
[1724453296602,3.59345,2782.9,2782.5,19.79]
[1724453296797,9.88475,2782.9,2782.5,19.79]
[1724453297170,6.2913,2782.9,2782.5,19.79]
[1724453297571,6.2913,2783.2,2782.5,22.513]
[1724453297803,3.0,2783.1,2782.5,29.0287]
[1724453298288,3.0,2783.1,2782.5,19.79]
[1724453298925,6.59311,2783.1,2782.5,19.79]
[1724453299441,9.88497,2782.7,2782.5,19.79]
[1724453299578,9.88497,2782.7,2781.9,0.74729267]
[1724453299579,6.2913,2782.7,2781.9,0.74729267]
[1724453299789,6.2913,2782.7,2782.0,3.74146478]
[1724453300013,6.2913,2782.7,2781.9,22.91363415]
[1724453300014,6.2913,2782.7,2781.9,20.32924407]
[1724453300190,6.2913,2782.7,2781.9,19.79]
[1724453300593,9.885,2782.7,2781.9,19.79]
[1724453300839,9.885,2782.7,2781.8,7.44]
[1724453300986,3.59424,2782.3,2781.8,7.44]
[1724453301321,3.953664,2782.3,2781.8,7.44]
[1724453301728,3.59395,2782.5,2781.8,7.44]
[1724453301927,3.0,2782.6,2781.8,7.44]
[1724453302825,9.94838114,2783.1,2782.0,3.59452]
[1724453303043,6.2913,2783.1,2782.1,3.5944]
[1724453303180,3.65708114,2783.5,2782.3,3.59404]
[1724453303181,6.2913,2783.4,2782.3,3.59404]
[1724453303383,3.59286,2783.3,2782.4,2.38526264]
[1724453303695,3.59286,2783.3,2782.4,1.13591877]
[1724453304593,3.59315,2783.1,2782.4,1.13591877]
[1724453304794,3.0,2783.2,2782.4,1.13591877]
[1724453305005,2.97616195,2783.2,2782.4,1.13591877]
[1724453305327,6.56916195,2783.2,2782.5,2.83659188]
[1724453305499,6.56916195,2783.2,2782.4,1.13591877]
[1724453305694,3.65708114,2783.0,2782.2,0.74729267]
[1724453306031,3.65708114,2783.0,2781.9,8.92131939]
[1724453306032,9.88476,2782.9,2781.7,4.88180635]
[1724453306255,6.2913,2782.9,2781.9,6.5157]
[1724453306394,6.2913,2782.9,2782.0,4.62664739]
[1724453306597,6.2913,2782.9,2782.1,1.24943309]
[1724453306598,9.88468,2782.9,2782.1,1.24943309]
[1724453307241,3.0,2782.8,2782.1,1.24943309]
[1724453307442,9.88468,2782.9,2782.0,3.37715416]
[1724453307743,9.88468,2782.9,2782.1,1.24944481]
[1724453307907,6.2913,2782.9,2782.2,0.4626599]
[1724453310336,3.0,2783.1,2782.3,1.24939716]
[1724453310507,3.0,2783.0,2782.4,6.5157]
[1724453310715,3.0,2783.2,2782.5,0.77650972]
[1724453310913,6.2913,2783.3,2782.5,0.77650972]
[1724453312813,6.2913,2783.3,2782.3,1.8741628]
[1724453313018,6.2913,2783.3,2782.4,1.2492813]
[1724453313218,6.2913,2783.3,2782.2,3.08411537]
[1724453313517,3.59379,2782.6,2782.2,0.53959442]
[1724453313722,3.59379,2782.6,2782.1,0.53959442]
[1724453314215,3.59379,2782.6,2782.0,10.81715416]
[1724453314722,10.42118,2782.8,2782.0,10.81715416]
[1724453315162,3.5937,2782.7,2782.0,10.81715416]
[1724453315819,3.59376,2782.6,2782.0,7.44]
[1724453316965,3.59371,2782.7,2782.0,7.44]
[1724453317258,3.0,2782.6,2782.0,7.44]
[1724453317758,6.59378,2782.6,2782.0,7.44]
[1724453318539,3.59398,2782.5,2781.5,7.12559267]
[1724453318838,10.11658114,2783.3,2782.3,3.59407]
[1724453319020,6.4595,2783.3,2782.4,7.70540564]
[1724453319217,6.4595,2783.3,2782.5,1.20467683]
[1724453319425,10.05238,2783.3,2782.5,1.20467683]
[1724453319621,6.4595,2783.3,2782.4,6.4561]
[1724453319923,3.59322,2783.1,2782.2,2.62179733]
[1724453320142,3.5927,2783.5,2782.4,6.4561]
[1724453320323,10.05188,2783.7,2782.5,1.24926675]
[1724453320661,10.05188,2783.7,2782.6,3.59367]
[1724453320960,10.05188,2783.7,2782.5,3.87106408]
[1724453320961,3.59248,2783.6,2782.7,1.99574016]
[1724453321279,10.05188,2783.7,2782.7,0.74647341]
[1724453321967,3.5926,2783.5,2782.7,0.74647341]
[1724453322171,7.18529,2783.5,2782.5,0.74729267]
[1724453322357,7.18529,2783.5,2782.5,1.99646462]
[1724453322553,3.59272,2783.4,2782.5,1.99646462]
[1724453322754,3.59285,2783.3,2782.6,1.24917195]
[1724453322960,3.59285,2783.3,2782.4,6.4561]
[1724453323156,3.59285,2783.3,2782.5,2.15701335]
[1724453323355,6.4595,2783.2,2782.3,2.62179733]
[1724453323559,3.59312,2783.1,2782.4,1.24929966]
[1724453323878,3.59312,2783.1,2782.2,0.74729267]
[1724453324075,3.59312,2783.1,2782.2,1.99661291]
[1724453324233,3.59312,2783.1,2782.3,1.24932024]
[1724453324437,3.59312,2783.1,2782.3,1.83068186]
[1724453324744,3.59346,2782.9,2782.1,14.43570103]
[1724453325142,7.18692,2782.9,2782.1,7.97960103]
[1724453325364,7.18692,2782.9,2782.1,9.31415478]
[1724453325669,6.4595,2782.8,2782.1,9.31415478]
[1724453325877,6.4595,2782.8,2782.1,10.42514475]
[1724453326956,10.05308,2782.8,2782.1,10.42514475]
[1724453327276,3.5937,2782.7,2782.1,7.44]
[1724453327474,6.5937,2782.7,2782.1,7.44]
[1724453327984,10.18742,2782.7,2782.1,7.44]
[1724453328145,8.258392,2782.7,2782.1,7.44]
[1724453329191,3.59376,2782.6,2782.1,7.44]
[1724453329480,8.258392,2782.7,2782.1,7.44]
[1724453329880,11.852132,2782.7,2782.1,7.44]
[1724453330189,8.258392,2782.7,2782.1,7.44]
[1724453330339,5.0656292,2782.6,2782.1,7.44]
[1724453331632,1.4717892,2782.6,2782.1,7.44]
[1724453331829,3.0,2782.7,2782.1,7.44]
[1724453333083,6.4595,2782.8,2782.1,7.44]
[1724453333297,10.25037114,2783.0,2782.1,7.44]
[1724453333488,3.0,2782.9,2782.1,7.44]
[1724453334280,3.0,2783.0,2782.1,7.44]
[1724453334480,3.0,2783.0,2782.2,3.709]
[1724453334978,6.59326,2783.0,2782.2,3.709]
[1724453335193,6.59326,2783.0,2782.1,7.44]
[1724453335551,10.18659,2783.0,2782.1,7.44]
[1724453335989,6.59326,2783.0,2782.1,7.44]
[1724453336555,3.0,2783.0,2782.1,7.44]
[1724453337101,3.59341,2782.9,2782.1,7.44]
[1724453337401,3.0,2782.8,2782.2,3.34955]
[1724453337585,6.59324,2783.0,2782.2,3.34955]
[1724453337985,6.6761,2783.1,2782.2,3.34955]
[1724453338160,3.59312,2783.1,2782.3,2.38227814]
[1724453338352,3.59324,2783.0,2782.3,1.13292123]
[1724453338599,3.59312,2783.1,2782.3,1.13292123]
[1724453338794,3.59339,2782.9,2782.3,1.13292123]
[1724453338949,7.18633,2783.1,2782.3,1.13292123]
[1724453339153,3.59312,2783.1,2782.3,1.13292123]
[1724453339387,3.59312,2783.1,2782.4,0.44824712]
[1724453339590,3.59325,2783.0,2782.4,0.44824712]
[1724453340150,3.59312,2783.1,2782.4,0.44824712]
[1724453340355,6.59291,2783.3,2782.5,6.3461]
[1724453340552,3.0,2783.3,2782.5,6.3461]
[1724453340758,3.59267,2783.5,2782.6,0.67943471]
[1724453341056,3.59272,2783.4,2782.6,0.67943471]
[1724453341328,3.59287,2783.3,2782.6,0.67943471]
[1724453343106,3.65708114,2783.4,2782.4,7.44]
[1724453343418,3.59313,2783.1,2782.4,7.44]
[1724453343730,3.65708114,2782.9,2782.4,7.44]
[1724453344028,3.59385,2782.6,2782.0,19.79]
[1724453344175,3.59385,2782.6,2781.9,6.3461]
[1724453345278,10.00842,2782.5,2781.6,33.5761]
[1724453348147,10.00842,2782.5,2781.6,13.7861]
[1724453348349,6.4145,2782.5,2781.6,7.44]
[1724453348505,3.59435,2782.2,2781.6,7.44]
[1724453348908,3.0,2782.4,2781.6,7.44]
[1724453350421,3.0,2782.4,2781.7,6.3461]
[1724453350622,7.25051114,2782.9,2781.8,1.37861]
[1724453350623,6.4145,2782.8,2781.8,1.37861]
[1724453350837,3.59367,2782.7,2781.8,1.37861]
[1724453351209,3.59367,2782.7,2781.8,1.37768734]
[1724453351555,3.59376,2782.6,2781.8,1.37768734]
[1724453352254,3.59422,2782.3,2781.6,7.44]
[1724453353457,13.34434,2782.7,2781.6,7.44]
[1724453353622,9.7507,2782.7,2781.7,6.7905]
[1724453353985,3.59391,2782.5,2781.7,6.7905]
[1724453354117,13.34441,2782.7,2781.8,1.42305]
[1724453354518,0.56342989,2782.4,2781.8,1.42305]
[1724453354729,0.56342989,2782.4,2781.8,5.01783]
[1724453355028,0.56342989,2782.4,2781.8,5.01777]
[1724453355770,0.56342989,2782.4,2781.8,1.42305]
[1724453355917,0.56342989,2782.4,2781.9,0.821355]
[1724453356274,0.56342989,2782.4,2781.8,1.42305]
[1724453357277,0.56342989,2782.4,2781.7,6.7905]
[1724453360477,0.56342989,2782.4,2781.6,7.44]
[1724453360779,7.18869,2782.2,2781.6,7.44]
[1724453361135,3.59442,2782.1,2781.6,7.44]
[1724453363210,3.59431,2782.2,2781.6,7.44]
[1724453363526,3.59431,2782.2,2781.6,11.18146478]
[1724453363728,4.15751989,2782.4,2781.6,11.18146478]
[1724453363940,6.59372,2782.7,2781.7,6.7905]
[1724453364303,7.1571107,2782.7,2781.7,6.7905]
[1724453364502,7.1571107,2782.7,2781.8,1.79719648]
[1724453365021,10.7508607,2782.7,2781.8,1.79719648]
[1724453365247,7.1571107,2782.7,2781.8,1.79719648]
[1724453365381,3.59376,2782.6,2781.8,1.79719648]
[1724453365579,3.59395,2782.5,2781.7,6.7905]
[1724453365829,3.59416,2782.3,2781.7,6.7905]
[1724453366327,6.7507,2782.2,2781.6,7.44]
[1724453369686,6.7507,2782.2,2781.5,19.79]
[1724453369889,1.034486,2782.1,2781.5,19.79]
[1724453370084,6.7507,2782.2,2781.5,19.79]
[1724453371892,3.0,2782.4,2781.5,19.79]
[1724453372091,3.0,2782.4,2781.5,23.38517]
[1724453372438,3.65708114,2781.9,2781.3,0.74729267]
[1724453372739,6.7507,2781.5,2780.8,1.87492309]
[1724453372955,6.7507,2781.5,2780.8,2.35332691]
[1724453373845,6.7507,2781.5,2780.8,2.30332691]
[1724453374010,6.7507,2781.5,2780.6,19.79]
[1724453374215,6.7507,2781.5,2780.7,1.25010089]
[1724453374413,6.7507,2781.5,2780.5,12.26211698]
[1724453374731,6.7507,2781.5,2780.6,1.25011075]
[1724453375514,6.7507,2781.5,2780.6,3.12518699]
[1724453375719,1.034575,2781.4,2780.6,1.87507624]
[1724453375914,1.034575,2781.4,2780.5,11.13425267]
[1724453376153,1.034575,2781.4,2780.6,1.25005431]
[1724453376461,1.034575,2781.4,2780.5,10.38696]
[1724453376632,6.7507,2781.5,2780.6,1.20006059]
[1724453378359,6.7507,2781.5,2780.5,8.66559074]
[1724453378664,6.4798,2780.7,2780.3,0.74729267]
[1724453378878,6.4798,2781.1,2779.9,6.2638]
[1724453379032,6.4798,2781.9,2781.0,6.2638]
[1724453379423,6.4798,2781.9,2781.1,3.59562]
[1724453379618,6.4798,2782.3,2781.3,3.59542]
[1724453379949,6.4798,2782.7,2781.5,9.85885]
[1724453380150,3.59384,2782.6,2781.5,3.59517]
[1724453380367,3.59384,2782.6,2781.6,6.2638]
[1724453380658,7.1877,2782.6,2781.6,6.2638]
[1724453380863,3.59389,2782.5,2781.6,7.249697]
[1724453381068,3.59406,2782.4,2781.6,7.249697]
[1724453382669,6.4798,2782.3,2781.2,7.249742]
[1724453383224,6.4798,2782.3,2781.2,14.440762]
[1724453383635,6.4798,2782.3,2781.2,14.440702]
[1724453383839,6.4798,2782.3,2781.2,3.59548]
[1724453384101,10.07513,2781.4,2780.2,0.74729267]
[1724453384287,10.07513,2781.4,2780.1,10.60807267]
[1724453384288,3.59564,2781.2,2780.1,10.60807267]
[1724453384487,3.59564,2781.2,2780.2,1.06080727]
[1724453385108,6.4798,2780.8,2780.2,1.06080727]
[1724453385410,3.0,2781.4,2780.2,1.06080727]
[1724453385411,6.4798,2781.6,2780.8,3.596]
[1724453385561,3.65708114,2782.0,2781.0,9.85955]
[1724453385562,10.13688114,2782.0,2781.0,9.85955]
[1724453385763,10.13688114,2782.0,2781.0,6.2638]
[1724453386069,3.59393,2782.5,2781.0,6.2638]
[1724453386070,7.25117114,2782.4,2781.0,8.13848254]
[1724453386276,7.25117114,2782.4,2781.1,3.5956]
[1724453386474,3.59436,2782.2,2781.2,0.98594]
[1724453386861,7.18873,2782.2,2781.2,0.98594]
[1724453387059,3.59436,2782.2,2781.2,0.98594]
[1724453387505,7.18873,2782.2,2781.2,0.98594]
[1724453387821,3.59436,2782.2,2781.2,0.98594]
[1724453388010,3.59436,2782.2,2781.3,0.458162]
[1724453388309,8.62426825,2782.4,2781.3,0.458162]
[1724453388601,3.59415,2782.3,2781.3,0.458162]
[1724453389177,3.59428,2782.2,2781.3,0.458162]
[1724453390078,7.18865,2782.2,2781.3,0.458162]
[1724453390275,8.41053283,2782.2,2781.3,0.458162]
[1724453390479,4.81616283,2782.2,2781.3,0.458162]
[1724453390679,3.59445,2782.1,2781.3,0.458162]
[1724453392473,1.22188283,2782.2,2781.3,0.458162]
[1724453392966,3.59422,2782.3,2781.3,0.458162]
[1724453394762,3.65708114,2782.4,2781.3,0.458162]
[1724453394981,3.65708114,2782.4,2781.4,3.59529]
[1724453394982,7.25111114,2782.4,2781.4,3.59529]
[1724453395155,3.59416,2782.3,2781.3,0.458162]
[1724453395364,4.31941411,2782.2,2781.3,0.458162]
[1724453395545,4.31941411,2782.2,2781.4,19.79]
[1724453395743,3.59442,2782.1,2781.4,19.79]
[1724453396074,3.65708114,2782.0,2781.4,19.79]
[1724453396272,7.25162114,2782.0,2781.4,19.79]
[1724453396476,0.72516211,2781.9,2781.4,19.79]
[1724453396650,3.65708114,2782.0,2781.4,19.79]
[1724453397963,3.65708114,2782.4,2781.5,6.6421]
[1724453398178,6.65708114,2782.4,2781.5,6.6421]
[1724453399436,10.25112114,2782.4,2781.5,6.6421]
[1724453399646,5.62663811,2782.3,2781.5,6.6421]
[1724453399952,5.62670811,2782.3,2781.4,19.79]
[1724453400156,3.59448,2782.1,2781.4,19.79]
[1724453401588,3.59448,2782.1,2781.3,7.44]
[1724453401746,4.51659781,2782.1,2781.3,7.44]
[1724453401948,10.10195,2782.0,2781.3,7.44]
[1724453402266,6.5074,2782.0,2781.3,7.44]
[1724453402907,6.5074,2782.3,2781.4,3.59529]
[1724453403100,6.65708114,2782.4,2781.4,3.59522]
[1724453403401,6.65708114,2782.4,2781.6,3.59498]
[1724453403556,6.65708114,2782.4,2781.7,19.79]
[1724453406169,6.5074,2782.1,2781.7,19.79]
[1724453406651,3.59418,2782.3,2781.7,19.79]
[1724453406974,3.59431,2782.2,2781.7,19.79]
[1724453407307,3.59414,2782.3,2781.7,19.79]
[1724453407475,1.67586211,2782.2,2781.4,19.79]
[1724453407801,13.16448114,2782.4,2781.4,19.79]
[1724453407986,16.75856114,2782.4,2781.5,0.33736947]
[1724453408911,10.16448114,2782.4,2781.5,0.33736947]
[1724453409210,3.59462,2782.0,2781.4,19.79]
[1724453409806,10.1021,2781.9,2781.4,19.79]
[1724453411037,3.59308,2783.2,2782.0,3.59444]
[1724453411244,3.59308,2783.2,2782.2,6.6421]
[1724453411544,3.59313,2783.1,2782.3,1.02365]
[1724453412333,3.59313,2783.1,2782.2,6.6421]
[1724453412334,3.59336,2783.0,2782.2,6.6421]
[1724453412746,3.59342,2782.9,2782.0,6.6421]
[1724453413035,3.59308,2783.2,2782.0,10.23662]
[1724453413333,3.59329,2783.0,2782.0,6.6421]
[1724453413546,3.59329,2783.0,2782.1,1.023665]
[1724453413838,6.607508,2783.1,2782.1,1.023665]
[1724453414038,3.0,2783.0,2782.1,1.023665]
[1724453414911,6.2482,2783.1,2782.1,1.023665]
[1724453415140,3.59307,2783.2,2782.2,1.1260205]
[1724453415347,3.59288,2783.3,2782.3,9.80454]
[1724453415649,3.0,2783.2,2782.3,9.80454]
[1724453415795,6.2482,2783.4,2782.4,1.45247705]
[1724453415995,9.84055,2783.7,2782.6,3.59364]
[1724453416302,3.59248,2783.6,2782.5,6.2104]
[1724453418562,3.59248,2783.6,2782.6,3.59374]
[1724453418855,6.2482,2783.7,2782.6,3.59374]
[1724453419059,11.10001168,2783.7,2782.7,0.980414]
[1724453419244,3.59249,2783.6,2782.7,0.980414]
[1724453419445,11.10003168,2783.7,2782.7,0.980414]
[1724453420327,3.59247,2783.6,2782.5,6.2104]
[1724453420727,3.5928,2783.4,2782.5,6.2104]
[1724453420961,3.59287,2783.3,2782.5,6.2104]
[1724453421768,6.2482,2783.1,2782.2,6.2104]
[1724453421963,3.59287,2783.3,2782.3,0.980475]
[1724453422788,13.49801114,2783.4,2782.4,6.2104]
[1724453423765,3.59287,2783.3,2782.4,6.2104]
[1724453424111,7.18581,2783.3,2782.4,6.2104]
[1724453424317,3.59312,2783.1,2782.4,6.2104]
[1724453424551,3.59287,2783.3,2782.4,6.2104]
[1724453427661,3.65708114,2783.4,2782.4,6.2104]
[1724453427861,7.24984114,2783.4,2782.4,6.2104]
[1724453428172,3.59265,2783.5,2782.5,6.2104]
[1724453428522,3.59274,2783.4,2782.5,6.2104]
[1724453428753,3.59274,2783.4,2782.5,7.55025]
[1724453429065,3.59265,2783.5,2782.5,7.55025]
[1724453429558,3.59272,2783.4,2782.5,7.55025]
[1724453430560,3.59292,2783.3,2782.5,7.55025]
[1724453430771,3.59265,2783.5,2782.5,6.2104]
[1724453431768,7.18533,2783.5,2782.5,6.2104]
[1724453432064,11.09994168,2783.7,2782.6,6.2104]
[1724453432253,0.07193098,2783.4,2782.6,6.2104]
[1724453432454,6.2482,2784.1,2782.7,6.7604]
[1724453432763,7.184,2784.0,2783.0,6.2104]
[1724453432973,3.59196,2784.0,2783.0,6.2104]
[1724453433132,6.2482,2784.1,2783.0,6.2104]
[1724453433133,3.59248,2783.6,2783.0,6.2104]
[1724453433536,3.59248,2783.6,2782.5,3.0]
[1724453433537,10.28508,2783.6,2782.6,6.576]
[1724453433918,6.6926,2783.6,2782.6,10.16965]
[1724453434476,6.6926,2783.6,2782.6,13.76332]
[1724453434765,7.676616,2783.9,2782.7,6.576]
[1724453434926,6.592,2784.0,2783.1,6.576]
[1724453435122,3.0,2784.0,2783.2,0.07184782]
[1724453435356,3.0,2784.0,2783.1,6.576]
[1724453435357,3.0,2784.0,2783.1,33.806]
[1724453435664,0.06858618,2783.9,2783.1,33.806]
[1724453436483,3.59233,2783.8,2783.1,33.806]
[1724453436704,0.36609162,2783.7,2783.1,33.806]
[1724453436838,0.06858618,2783.9,2783.1,33.806]
[1724453436839,3.66078618,2783.9,2783.1,33.806]
[1724453437043,3.0,2784.0,2783.1,33.806]
[1724453437044,0.06857303,2783.8,2783.1,33.806]
[1724453437241,6.59202,2784.0,2783.1,33.806]
[1724453437427,3.0,2784.0,2783.1,37.39911]
[1724453437627,3.0,2784.1,2783.2,3.739911]
[1724453437823,6.59183,2784.1,2783.2,3.739911]
[1724453438262,3.59205,2784.0,2783.2,3.739911]
[1724453438468,6.59183,2784.1,2783.2,3.739911]
[1724453438623,3.59196,2784.0,2783.2,3.739911]
[1724453438826,3.59222,2783.8,2783.1,33.806]
[1724453439126,3.0,2784.1,2783.1,37.39904]
[1724453439346,3.0,2784.1,2783.1,27.23]
[1724453439347,0.06857213,2783.7,2783.1,27.23]
[1724453439676,3.65708114,2784.6,2783.1,27.23]
[1724453439677,10.28411,2784.4,2783.4,6.576]
[1724453439877,0.06925162,2784.3,2783.4,10.16869]
[1724453440041,0.06925162,2784.3,2783.6,6.576]
[1724453440243,3.59121,2784.6,2783.6,6.576]
[1724453440448,0.06919695,2784.5,2783.7,19.79]
[1724453440878,3.66051695,2784.5,2783.7,19.79]
[1724453441379,0.06919695,2784.5,2783.8,6.576]
[1724453441545,0.06919695,2784.5,2783.9,2.6366]
[1724453442145,3.66050695,2784.5,2783.9,2.6366]
[1724453442366,0.06919695,2784.5,2783.9,2.6366]
[1724453442672,3.66053695,2784.5,2783.9,2.6366]
[1724453443453,0.06919695,2784.5,2783.9,2.6366]
[1724453443635,0.06919695,2784.5,2784.0,0.92126]
[1724453444073,13.94039114,2785.0,2784.2,6.576]
[1724453444259,0.0697176,2784.9,2784.3,0.07182239]
[1724453444636,0.0697176,2784.9,2784.2,6.576]
[1724453445777,3.59099,2784.8,2784.2,6.576]
[1724453446533,0.06634995,2784.7,2784.2,6.576]
[1724453446738,0.06634995,2784.7,2784.2,8.13140804]
[1724453447237,7.24779114,2785.0,2784.2,8.13140804]
[1724453447441,10.83853114,2785.0,2784.2,8.13140804]
[1724453447741,7.24779114,2785.0,2784.2,8.13140804]
[1724453448165,10.83855114,2785.0,2784.2,8.13140804]
[1724453448378,3.59081,2784.9,2784.2,8.13140804]
[1724453448757,7.24779114,2785.0,2784.2,8.13140804]
[1724453449136,7.15025369,2785.0,2784.2,8.13140804]
[1724453449749,3.59046,2785.2,2784.2,8.13140804]
[1724453449954,3.0,2785.1,2784.2,8.13140804]
[1724453450140,3.0669337,2785.1,2784.3,1.016869]
[1724453450993,3.59084,2784.9,2784.3,1.016869]
[1724453451154,3.59084,2784.9,2784.2,6.576]
[1724453452571,3.59092,2784.8,2784.2,6.576]
[1724453452768,3.59092,2784.8,2784.1,27.23]
[1724453452769,7.24836114,2784.6,2784.1,27.23]
[1724453452968,7.24836114,2784.6,2783.8,12.46]
[1724453452969,7.24833114,2784.6,2783.8,19.9]
[1724453453280,3.59154,2784.4,2783.8,19.9]
[1724453453500,3.59154,2784.4,2783.8,3.74146478]
[1724453453811,7.24833114,2784.6,2783.8,3.74146478]
[1724453453812,0.06641393,2784.3,2783.8,3.74146478]
[1724453454197,7.24827114,2784.6,2783.8,3.74146478]
[1724453454710,3.5915,2784.4,2783.7,6.6528]
[1724453454869,3.5915,2784.4,2783.6,19.79]
[1724453454870,6.794,2784.3,2783.6,19.79]
[1724453455065,0.06632312,2784.2,2783.6,19.79]
[1724453455268,3.65808312,2784.2,2783.6,19.79]
[1724453455525,3.59202,2784.0,2783.5,7.44]
[1724453455766,3.65807312,2784.2,2783.5,11.18146478]
[1724453455996,3.65807312,2784.2,2783.6,6.6528]
[1724453456270,7.24986312,2784.2,2783.6,6.6528]
[1724453456511,3.65807312,2784.2,2783.6,6.6528]
[1724453456829,0.06632312,2784.2,2783.6,6.6528]
[1724453456984,0.06632312,2784.2,2783.7,1.78342648]
[1724453457183,0.06632312,2784.2,2783.6,6.6528]
[1724453457184,3.59165,2784.3,2783.6,6.6528]
[1724453457383,0.06607904,2784.1,2783.6,6.6528]
[1724453457610,0.06612898,2784.2,2783.6,6.6528]
[1724453457780,0.06599641,2784.0,2783.6,6.6528]
[1724453457976,0.06606269,2784.1,2783.6,6.6528]
[1724453458181,0.06593012,2783.9,2783.8,6.4769]
[1724453458422,3.0,2784.6,2783.8,6.4769]
[1724453458634,3.5911,2784.7,2783.8,6.4769]
[1724453458925,0.06627555,2784.6,2783.9,0.54907297]
[1724453459708,0.06627555,2784.6,2784.0,6.54872707]
[1724453460012,3.5903,2785.3,2784.3,6.4769]
[1724453460354,3.59066,2785.1,2784.4,20.43769]
[1724453460853,0.064237,2785.0,2784.4,20.43769]
[1724453461163,7.105337,2785.0,2784.4,19.79]
[1724453461449,6.59082,2784.9,2784.4,19.79]
[1724453461654,3.59094,2784.8,2784.4,19.79]
[1724453461810,0.06453537,2784.8,2784.4,19.79]
[1724453462127,3.59116,2784.7,2784.4,19.79]
[1724453462322,4.98151965,2784.7,2784.0,26.3769]
[1724453462642,3.65586966,2784.6,2784.0,26.3769]
[1724453462809,3.59146,2784.4,2784.0,19.9]
[1724453463027,3.59146,2784.4,2783.8,19.79]
[1724453463215,0.06439987,2784.3,2783.7,8.31649929]
[1724453463642,10.63249,2784.5,2783.7,8.31649929]
[1724453463860,3.59139,2784.5,2783.7,8.31649929]
[1724453464011,0.06443346,2784.4,2783.7,8.31649929]
[1724453464216,0.06443346,2784.4,2783.8,1.57564993]
[1724453465109,6.59084,2784.9,2783.9,6.4769]
[1724453465423,0.06454123,2784.3,2783.9,6.4769]
[1724453465748,3.59084,2784.9,2783.9,6.4769]
[1724453466163,0.06472962,2784.8,2783.9,6.4769]
[1724453466326,0.06472962,2784.8,2784.0,1.2206438]
[1724453467163,3.65566962,2784.8,2784.0,1.2206438]
[1724453467366,3.65566962,2784.8,2783.9,6.4769]
[1724453467367,3.59124,2784.6,2783.9,6.4769]
[1724453467886,0.06466562,2784.5,2783.9,6.4769]
[1724453468092,10.63222,2784.7,2783.9,6.4769]
[1724453468386,3.65593189,2784.6,2783.9,6.4769]
[1724453468592,3.65593189,2784.6,2783.9,7.28215499]
[1724453470495,3.65593189,2784.6,2783.8,1.57564993]
[1724453470702,3.59141,2784.5,2783.6,13.9169]
[1724453471005,0.06455851,2784.4,2783.6,13.9169]
[1724453473971,0.06455851,2784.4,2783.6,17.50935]
[1724453474183,3.0,2784.6,2783.6,17.50935]
[1724453474504,0.06241882,2784.5,2783.7,1.80710781]
[1724453474660,0.06241882,2784.5,2783.7,5.39937781]
[1724453474858,0.06241882,2784.5,2783.8,3.59211]
[1724453475089,7.0411,2784.7,2783.8,3.59211]
[1724453475502,0.06248509,2784.6,2783.8,3.59211]
[1724453475802,0.06248509,2784.6,2783.9,0.53992178]
[1724453476164,0.06248509,2784.6,2783.7,1.80710781]
[1724453476361,0.06248509,2784.6,2783.6,7.44]
[1724453476582,10.37874,2784.2,2783.6,7.44]
[1724453476808,3.59203,2784.0,2783.6,7.44]
[1724453477209,3.59236,2783.7,2783.4,19.79]
[1724453477411,10.37936,2783.7,2783.1,7.44]
[1724453477616,10.37936,2783.7,2783.1,10.85326]
[1724453477903,6.787,2783.7,2783.1,10.85326]
[1724453482186,10.37936,2783.7,2783.1,10.85326]
[1724453483212,10.37936,2783.7,2783.1,7.44]
[1724453484710,6.787,2783.7,2783.1,7.44]
[1724453489396,6.787,2783.6,2783.0,19.79]
[1724453489603,3.5926,2783.5,2783.0,19.79]
[1724453489805,3.5926,2783.5,2783.0,23.53146478]
[1724453490399,3.5926,2783.5,2783.0,19.79]
[1724453492532,6.787,2783.4,2783.0,19.79]
[1724453493753,6.787,2783.4,2782.8,7.44]
[1724453495506,6.8225,2783.1,2782.6,19.79]
[1724453495703,0.40607772,2783.0,2782.6,19.79]
[1724453495948,6.8225,2783.1,2782.6,19.79]
[1724453496901,10.41562,2783.1,2782.3,7.44]
[1724453499112,6.8225,2783.1,2782.3,7.44]
[1724453499312,6.8225,2783.1,2782.3,14.62814]
[1724453499616,6.8225,2783.1,2782.4,7.09199681]
[1724453500266,6.8225,2783.1,2782.4,3.49798681]
[1724453500612,6.8225,2783.1,2782.3,7.44]
[1724453500819,6.8225,2782.9,2782.3,7.44]
[1724453502011,10.41592,2782.9,2782.3,7.44]
[1724453502215,6.8225,2782.8,2782.2,19.79]
[1724453502414,6.8225,2782.8,2781.9,7.44]
[1724453502651,6.8225,2782.8,2782.0,2.723]
[1724453503141,10.41602,2782.8,2782.0,2.723]
[1724453503456,6.8225,2782.8,2782.0,2.723]
[1724453504445,3.59342,2782.9,2782.0,2.723]
[1724453504446,7.18691,2782.9,2782.0,2.723]
[1724453504645,6.8225,2782.8,2782.0,2.723]
[1724453504850,6.8225,2782.8,2782.1,1.0163]
[1724453506971,6.8225,2782.2,2781.2,3.59556]
[1724453507536,6.8225,2782.2,2781.4,3.59523]
[1724453507763,6.8225,2782.2,2781.5,3.59516]
[1724453508070,6.8225,2782.2,2781.6,3.59505]